[Event "Early-Titled-Tuesday-Blitz-May-07-2024"]
[Site "Chess.com"]
[Date "2024.05.07"]
[Round "8"]
[White "LLariMarc"]
[Black "sterpfi"]
[Result "1/2-1/2"]
[WhiteElo "2510"]
[BlackElo "2317"]
[TimeControl "180+1"]
[EndTime "9:36:12 PDT"]
[Termination "Game drawn by 50-move rule"]

1. d4 {[%clk 0:03:00.9]} 1... d5 {[%clk 0:02:58.8]} 2. Nf3 {[%clk 0:03:00.9]}
2... Nf6 {[%clk 0:02:58.6]} 3. Bf4 {[%clk 0:02:59.9]} 3... e6 {[%clk 0:02:58.7]}
4. e3 {[%clk 0:03:00.1]} 4... Bd6 {[%clk 0:02:58.8]} 5. Bg3 {[%clk 0:02:59.3]}
5... O-O {[%clk 0:02:58.4]} 6. Nbd2 {[%clk 0:02:59.3]} 6... c5 {[%clk
0:02:58.6]} 7. c3 {[%clk 0:02:59.1]} 7... Qc7 {[%clk 0:02:58.9]} 8. Ne5 {[%clk
0:02:53]} 8... Nc6 {[%clk 0:02:54.4]} 9. f4 {[%clk 0:02:50]} 9... Ne7 {[%clk
0:02:50]} 10. Bd3 {[%clk 0:02:48.9]} 10... Nf5 {[%clk 0:02:20.9]} 11. Bf2 {[%clk
0:02:48.3]} 11... Be7 {[%clk 0:02:14.9]} 12. g4 {[%clk 0:02:48.3]} 12... Nd6
{[%clk 0:02:14.9]} 13. Qf3 {[%clk 0:02:42.8]} 13... b6 {[%clk 0:02:04.7]} 14. g5
{[%clk 0:02:42.9]} 14... Nfe4 {[%clk 0:02:04.9]} 15. h4 {[%clk 0:02:26]} 15...
Nxd2 {[%clk 0:01:54.4]} 16. Kxd2 {[%clk 0:02:26.9]} 16... Ne4+ {[%clk
0:01:54.9]} 17. Ke2 {[%clk 0:02:21.4]} 17... cxd4 {[%clk 0:01:41.6]} 18. exd4
{[%clk 0:02:21]} 18... Bb7 {[%clk 0:01:34.7]} 19. h5 {[%clk 0:02:20.8]} 19... f5
{[%clk 0:01:29.2]} 20. gxf6 {[%clk 0:01:59]} 20... Bxf6 {[%clk 0:01:29.5]} 21.
Rag1 {[%clk 0:01:55.1]} 21... Bxe5 {[%clk 0:01:22.1]} 22. dxe5 {[%clk
0:01:54.6]} 22... Qf7 {[%clk 0:01:22.7]} 23. Be3 {[%clk 0:01:51.8]} 23... Qf5
{[%clk 0:01:15.4]} 24. Rh2 {[%clk 0:01:32.7]} 24... Rf7 {[%clk 0:01:14.6]} 25.
Qg4 {[%clk 0:01:28.9]} 25... Raf8 {[%clk 0:00:37.6]} 26. Rhg2 {[%clk 0:01:24]}
26... Qxg4+ {[%clk 0:00:30]} 27. Rxg4 {[%clk 0:01:24.9]} 27... Kh8 {[%clk
0:00:18.9]} 28. Bd4 {[%clk 0:01:24]} 28... Rg8 {[%clk 0:00:12.6]} 29. Ke3 {[%clk
0:01:22.4]} 29... Rf5 {[%clk 0:00:12]} 30. Bxe4 {[%clk 0:01:16.6]} 30... dxe4
{[%clk 0:00:11.3]} 31. Rg5 {[%clk 0:01:17.2]} 31... Rgf8 {[%clk 0:00:04.1]} 32.
Rxf5 {[%clk 0:01:14.3]} 32... Rxf5 {[%clk 0:00:03.1]} 33. Rg5 {[%clk 0:01:13.6]}
33... Rxg5 {[%clk 0:00:01.3]} 34. fxg5 {[%clk 0:01:14.5]} 34... Kg8 {[%clk
0:00:02]} 35. g6 {[%clk 0:01:13.4]} 35... hxg6 {[%clk 0:00:02]} 36. hxg6 {[%clk
0:01:14.3]} 36... Kf8 {[%clk 0:00:02]} 37. Kf4 {[%clk 0:01:14.4]} 37... Ke7
{[%clk 0:00:02.5]} 38. c4 {[%clk 0:01:13.7]} 38... Bc6 {[%clk 0:00:03]} 39. b4
{[%clk 0:01:11.8]} 39... Be8 {[%clk 0:00:02.3]} 40. Kg5 {[%clk 0:01:11.9]} 40...
Kd7 {[%clk 0:00:02.2]} 41. a4 {[%clk 0:01:09.8]} 41... Kc6 {[%clk 0:00:02.6]}
42. b5+ {[%clk 0:01:09.7]} 42... Kd7 {[%clk 0:00:02.6]} 43. a5 {[%clk
0:01:08.1]} 43... Kc7 {[%clk 0:00:02.9]} 44. Kh5 {[%clk 0:00:53]} 44... bxa5
{[%clk 0:00:03.2]} 45. Bxa7 {[%clk 0:00:51.3]} 45... a4 {[%clk 0:00:03.8]} 46.
Kg4 {[%clk 0:00:48.9]} 46... a3 {[%clk 0:00:03.5]} 47. Kf4 {[%clk 0:00:48.2]}
47... Kb7 {[%clk 0:00:02]} 48. Bd4 {[%clk 0:00:47.9]} 48... Bxg6 {[%clk
0:00:02.7]} 49. c5 {[%clk 0:00:43.1]} 49... Bf5 {[%clk 0:00:03.3]} 50. c6+
{[%clk 0:00:42.7]} 50... Kc7 {[%clk 0:00:03.7]} 51. Ke3 {[%clk 0:00:26.3]} 51...
a2 {[%clk 0:00:03.7]} 52. Kd2 {[%clk 0:00:27.2]} 52... g5 {[%clk 0:00:03.3]} 53.
Kc1 {[%clk 0:00:24.5]} 53... e3 {[%clk 0:00:02.3]} 54. Kb2 {[%clk 0:00:23.2]}
54... g4 {[%clk 0:00:03.2]} 55. Bxe3 {[%clk 0:00:20.6]} 55... Bb1 {[%clk
0:00:03.1]} 56. Bf2 {[%clk 0:00:18.6]} 56... Bd3 {[%clk 0:00:02.5]} 57. Kxa2
{[%clk 0:00:17]} 57... Bxb5 {[%clk 0:00:02.2]} 58. Kb3 {[%clk 0:00:17.5]} 58...
Bxc6 {[%clk 0:00:02.7]} 59. Kc4 {[%clk 0:00:16.8]} 59... Bd5+ {[%clk 0:00:03.6]}
60. Kd4 {[%clk 0:00:17.4]} 60... Kd7 {[%clk 0:00:03.1]} 61. Ke3 {[%clk
0:00:17.5]} 61... Kc6 {[%clk 0:00:03.6]} 62. Kf4 {[%clk 0:00:18.4]} 62... Kb5
{[%clk 0:00:04.1]} 63. Bh4 {[%clk 0:00:18.3]} 63... Kc4 {[%clk 0:00:05]} 64. Bf6
{[%clk 0:00:19]} 64... Kd3 {[%clk 0:00:05.6]} 65. Kg3 {[%clk 0:00:19.9]} 65...
Kd4 {[%clk 0:00:05.7]} 66. Bh8 {[%clk 0:00:20.8]} 66... Ke4 {[%clk 0:00:06.3]}
67. Bg7 {[%clk 0:00:21.7]} 67... Kf5 {[%clk 0:00:07.2]} 68. Bf6 {[%clk
0:00:22.2]} 68... Kg6 {[%clk 0:00:07.7]} 69. Kf2 {[%clk 0:00:22.5]} 69... Kf5
{[%clk 0:00:08.6]} 70. Kg3 {[%clk 0:00:23.4]} 70... Ke4 {[%clk 0:00:09.4]} 71.
Bh8 {[%clk 0:00:21.1]} 71... Kf5 {[%clk 0:00:10.3]} 72. Bg7 {[%clk 0:00:19.7]}
72... Kg6 {[%clk 0:00:11.2]} 73. Bf6 {[%clk 0:00:20.2]} 73... Kf7 {[%clk
0:00:12.1]} 74. Kxg4 {[%clk 0:00:20.3]} 74... Kg6 {[%clk 0:00:13]} 75. Kf4
{[%clk 0:00:21.2]} 75... Kf7 {[%clk 0:00:13.9]} 76. Ke3 {[%clk 0:00:22.1]} 76...
Kg6 {[%clk 0:00:14.8]} 77. Kd4 {[%clk 0:00:23]} 77... Kf7 {[%clk 0:00:15.5]} 78.
Kc5 {[%clk 0:00:23.9]} 78... Kg6 {[%clk 0:00:16.4]} 79. Kd6 {[%clk 0:00:24.8]}
79... Kf7 {[%clk 0:00:17.3]} 80. Kc7 {[%clk 0:00:25.1]} 80... Kg6 {[%clk
0:00:18.2]} 81. Kd7 {[%clk 0:00:26]} 81... Kf5 {[%clk 0:00:19.1]} 82. Ke7 {[%clk
0:00:26.5]} 82... Kg6 {[%clk 0:00:20]} 83. Kf8 {[%clk 0:00:26.7]} 83... Kf5
{[%clk 0:00:20.9]} 84. Kg7 {[%clk 0:00:27.6]} 84... Ke4 {[%clk 0:00:21.2]} 85.
Kh6 {[%clk 0:00:28.5]} 85... Kf5 {[%clk 0:00:22]} 86. Kh5 {[%clk 0:00:28.7]}
86... Ke4 {[%clk 0:00:22.9]} 87. Kh4 {[%clk 0:00:29.6]} 87... Kf5 {[%clk
0:00:23.8]} 88. Kg3 {[%clk 0:00:29.9]} 88... Ke4 {[%clk 0:00:24.6]} 89. Kf2
{[%clk 0:00:30.8]} 89... Kf5 {[%clk 0:00:22.2]} 90. Ke3 {[%clk 0:00:31.7]} 90...
Kg6 {[%clk 0:00:22.2]} 91. Kd4 {[%clk 0:00:32.6]} 91... Kf7 {[%clk 0:00:23.1]}
92. Kc5 {[%clk 0:00:33.5]} 92... Ke8 {[%clk 0:00:23.9]} 93. Kd6 {[%clk
0:00:34.4]} 93... Kf7 {[%clk 0:00:24.8]} 94. Kd7 {[%clk 0:00:34.8]} 94... Kg6
{[%clk 0:00:25.7]} 95. Ke8 {[%clk 0:00:35.4]} 95... Kf5 {[%clk 0:00:26.6]} 96.
Kf8 {[%clk 0:00:36.2]} 96... Ke4 {[%clk 0:00:27.5]} 97. Kg7 {[%clk 0:00:36.9]}
97... Kd3 {[%clk 0:00:28.4]} 98. Kh8 {[%clk 0:00:37.8]} 98... Kc4 {[%clk
0:00:29.3]} 99. Kh7 {[%clk 0:00:38.7]} 99... Kb5 {[%clk 0:00:30.2]} 100. Kh6
{[%clk 0:00:39.6]} 100... Kc6 {[%clk 0:00:31.1]} 101. Kh5 {[%clk 0:00:40.5]}
101... Kb7 {[%clk 0:00:32]} 102. Kh4 {[%clk 0:00:41.4]} 102... Ka6 {[%clk
0:00:32.9]} 103. Kh3 {[%clk 0:00:42.3]} 103... Kb5 {[%clk 0:00:33.8]} 104. Kg3
{[%clk 0:00:42.6]} 104... Ka5 {[%clk 0:00:34.7]} 105. Kh2 {[%clk 0:00:43.5]}
105... Ka4 {[%clk 0:00:35.6]} 106. Kg1 {[%clk 0:00:44.4]} 106... Kb3 {[%clk
0:00:36.5]} 107. Kf2 {[%clk 0:00:45.3]} 107... Kc4 {[%clk 0:00:37.4]} 108. Ke3
{[%clk 0:00:46]} 108... Kb5 {[%clk 0:00:38.3]} 109. Kf4 {[%clk 0:00:46.9]}
109... Kc6 {[%clk 0:00:39.2]} 110. Kg5 {[%clk 0:00:47.8]} 110... Kb7 {[%clk
0:00:40.1]} 111. Kh6 {[%clk 0:00:48.4]} 111... Kc8 {[%clk 0:00:41]} 112. Kg7
{[%clk 0:00:49.1]} 112... Kd7 {[%clk 0:00:41.9]} 113. Kg6 {[%clk 0:00:50]}
113... Kc6 {[%clk 0:00:42.8]} 114. Kh7 {[%clk 0:00:50.9]} 114... Kb5 {[%clk
0:00:43.7]} 115. Kg8 {[%clk 0:00:51.8]} 115... Kc4 {[%clk 0:00:44.6]} 116. Kg7
{[%clk 0:00:52.7]} 116... Kd3 {[%clk 0:00:45.5]} 117. Kf8 {[%clk 0:00:53.6]}
117... Ke4 {[%clk 0:00:46.4]} 118. Kf7 {[%clk 0:00:54.5]} 118... Kd3 {[%clk
0:00:47.3]} 119. Ke7 {[%clk 0:00:55.4]} 119... Kc4 {[%clk 0:00:47.4]} 120. Ke8
{[%clk 0:00:56.3]} 120... Kb3 {[%clk 0:00:48.2]} 121. Kd8 {[%clk 0:00:57.2]}
121... Kc2 {[%clk 0:00:48.9]} 122. Kd7 {[%clk 0:00:58.1]} 122... Kd3 {[%clk
0:00:49.4]} 123. Kc7 {[%clk 0:00:59]} 123... Kc4 {[%clk 0:00:50.3]} 124. Kd6
{[%clk 0:00:59.9]} 1/2-1/2

[Event "Early-Titled-Tuesday-Blitz-May-07-2024"]
[Site "Chess.com"]
[Date "2024.05.07"]
[Round "8"]
[White "Grandelicious"]
[Black "GM_dmitrij"]
[Result "1-0"]
[WhiteElo "2916"]
[BlackElo "3036"]
[TimeControl "180+1"]
[EndTime "9:36:14 PDT"]
[Termination "Grandelicious won by resignation"]

1. c4 {[%clk 0:03:00.9]} 1... e5 {[%clk 0:02:56.9]} 2. Nc3 {[%clk 0:02:58.8]}
2... Bb4 {[%clk 0:02:56.7]} 3. Qb3 {[%clk 0:02:58.9]} 3... Nc6 {[%clk
0:02:54.8]} 4. Nd5 {[%clk 0:02:51.8]} 4... a5 {[%clk 0:02:51.8]} 5. g3 {[%clk
0:02:49.4]} 5... Nf6 {[%clk 0:02:51.2]} 6. Bg2 {[%clk 0:02:49.5]} 6... O-O
{[%clk 0:02:50.7]} 7. e3 {[%clk 0:02:49.5]} 7... Re8 {[%clk 0:02:40.3]} 8. Ne2
{[%clk 0:02:49.5]} 8... Bf8 {[%clk 0:02:40.6]} 9. O-O {[%clk 0:02:48.4]} 9... a4
{[%clk 0:02:30.2]} 10. Qd1 {[%clk 0:02:30.8]} 10... Nxd5 {[%clk 0:02:30]} 11.
cxd5 {[%clk 0:02:30.7]} 11... Nb4 {[%clk 0:02:30.3]} 12. Nc3 {[%clk 0:02:25]}
12... a3 {[%clk 0:02:12.4]} 13. bxa3 {[%clk 0:02:24.3]} 13... Nd3 {[%clk
0:02:12.7]} 14. a4 {[%clk 0:02:23]} 14... c6 {[%clk 0:02:12.8]} 15. Qc2 {[%clk
0:02:14.7]} 15... Nxc1 {[%clk 0:01:34]} 16. Rfxc1 {[%clk 0:02:15.6]} 16... Qa5
{[%clk 0:01:18.5]} 17. Rab1 {[%clk 0:02:14.3]} 17... Ba3 {[%clk 0:01:17]} 18.
Rd1 {[%clk 0:02:10.1]} 18... Bb4 {[%clk 0:01:17.3]} 19. Ne4 {[%clk 0:01:57.5]}
19... cxd5 {[%clk 0:01:04.8]} 20. Ng5 {[%clk 0:01:56.9]} 20... e4 {[%clk
0:01:05]} 21. d3 {[%clk 0:01:57.1]} 21... Be7 {[%clk 0:01:00.1]} 22. Nh3 {[%clk
0:01:54.8]} 22... Qxa4 {[%clk 0:01:00.5]} 23. Qxa4 {[%clk 0:01:48.6]} 23... Rxa4
{[%clk 0:01:01.4]} 24. Nf4 {[%clk 0:01:49.3]} 24... d4 {[%clk 0:00:56.2]} 25.
exd4 {[%clk 0:01:41.6]} 25... exd3 {[%clk 0:00:56.2]} 26. Bxb7 {[%clk
0:01:34.3]} 26... Rxa2 {[%clk 0:00:46.5]} 27. Rxd3 {[%clk 0:01:15.3]} 27... Ra7
{[%clk 0:00:41.8]} 28. Bxc8 {[%clk 0:01:08.5]} 28... Rxc8 {[%clk 0:00:42.7]} 29.
Rdb3 {[%clk 0:01:04.5]} 29... Bd6 {[%clk 0:00:30.4]} 30. Nd5 {[%clk 0:00:59.5]}
30... f6 {[%clk 0:00:28.5]} 31. Rb7 {[%clk 0:00:58.5]} 31... Rca8 {[%clk
0:00:25.8]} 32. R1b6 {[%clk 0:00:50.2]} 32... Bf8 {[%clk 0:00:18.1]} 33. h4
{[%clk 0:00:50.5]} 33... Kf7 {[%clk 0:00:18.3]} 34. h5 {[%clk 0:00:49.4]} 34...
Rxb7 {[%clk 0:00:15.5]} 35. Rxb7 {[%clk 0:00:49.8]} 35... Ke6 {[%clk 0:00:16.1]}
36. Ne3 {[%clk 0:00:48]} 36... Ra4 {[%clk 0:00:14.3]} 37. d5+ {[%clk 0:00:44]}
37... Ke7 {[%clk 0:00:14.9]} 38. Nf5+ {[%clk 0:00:37.9]} 38... Ke8 {[%clk
0:00:15.3]} 39. Rb8+ {[%clk 0:00:38.5]} 39... Kf7 {[%clk 0:00:15.8]} 40. Rd8
{[%clk 0:00:38.9]} 40... g6 {[%clk 0:00:15.2]} 41. hxg6+ {[%clk 0:00:26.5]}
41... hxg6 {[%clk 0:00:16.1]} 42. Nh4 {[%clk 0:00:27.3]} 42... Ra7 {[%clk
0:00:15.3]} 43. Kg2 {[%clk 0:00:26.1]} 43... Be7 {[%clk 0:00:12.6]} 44. Rh8
{[%clk 0:00:21.9]} 44... Kg7 {[%clk 0:00:12.9]} 45. Re8 {[%clk 0:00:19.6]} 45...
Kf7 {[%clk 0:00:13.4]} 46. Rh8 {[%clk 0:00:19.6]} 46... Kg7 {[%clk 0:00:11.8]}
47. Re8 {[%clk 0:00:19.8]} 47... Bc5 {[%clk 0:00:12.2]} 48. Re2 {[%clk
0:00:12.8]} 48... Kf7 {[%clk 0:00:10.1]} 49. Rc2 {[%clk 0:00:12.2]} 49... d6
{[%clk 0:00:09.2]} 50. Nf3 {[%clk 0:00:11.4]} 50... Ra3 {[%clk 0:00:08.1]} 51.
Rd2 {[%clk 0:00:11.6]} 51... Rb3 {[%clk 0:00:06.1]} 52. Ne1 {[%clk 0:00:11.7]}
52... Bb4 {[%clk 0:00:04.8]} 53. Rd3 {[%clk 0:00:12]} 53... Rb2 {[%clk
0:00:04.3]} 54. Nf3 {[%clk 0:00:09.5]} 54... Bc5 {[%clk 0:00:04.7]} 55. Nd4
{[%clk 0:00:09.8]} 55... f5 {[%clk 0:00:03.9]} 56. Kf3 {[%clk 0:00:06.7]} 56...
Kf6 {[%clk 0:00:04.4]} 57. g4 {[%clk 0:00:07.4]} 57... Ke5 {[%clk 0:00:03.7]}
58. Nc6+ {[%clk 0:00:07.6]} 58... Kf6 {[%clk 0:00:04.3]} 59. gxf5 {[%clk
0:00:08.5]} 59... Rxf2+ {[%clk 0:00:03.4]} 60. Kg3 {[%clk 0:00:09.2]} 60... Rxf5
{[%clk 0:00:04.3]} 61. Nd8 {[%clk 0:00:08.2]} 61... Rg5+ {[%clk 0:00:04.3]} 62.
Kf3 {[%clk 0:00:08]} 62... Rf5+ {[%clk 0:00:05]} 63. Ke2 {[%clk 0:00:07.9]}
63... Ke5 {[%clk 0:00:04.2]} 64. Ne6 {[%clk 0:00:08]} 64... Bb4 {[%clk
0:00:02.5]} 65. Nd4 {[%clk 0:00:06.2]} 65... Rf6 {[%clk 0:00:02.3]} 66. Nc6+
{[%clk 0:00:06.7]} 66... Ke4 {[%clk 0:00:03]} 67. Nxb4 {[%clk 0:00:07.6]} 67...
g5 {[%clk 0:00:03.4]} 68. Re3+ {[%clk 0:00:07]} 68... Kd4 {[%clk 0:00:03.9]} 69.
Rd3+ {[%clk 0:00:07.2]} 69... Ke4 {[%clk 0:00:03.5]} 70. Nc2 {[%clk 0:00:07.4]}
70... g4 {[%clk 0:00:03.6]} 71. Rd4+ {[%clk 0:00:08]} 71... Ke5 {[%clk
0:00:02.8]} 72. Kd3 {[%clk 0:00:05.1]} 72... g3 {[%clk 0:00:01.9]} 73. Ne3
{[%clk 0:00:05.8]} 73... Rf3 {[%clk 0:00:02.2]} 74. Re4+ {[%clk 0:00:05.8]}
74... Kf6 {[%clk 0:00:01.6]} 75. Rg4 {[%clk 0:00:06.2]} 75... Ke5 {[%clk
0:00:02]} 76. Rg5+ {[%clk 0:00:06.6]} 76... Kf6 {[%clk 0:00:02.4]} 77. Rg8
{[%clk 0:00:07]} 77... Ke5 {[%clk 0:00:02.9]} 78. Re8+ {[%clk 0:00:06.1]} 78...
Kf4 {[%clk 0:00:03.2]} 79. Rf8+ {[%clk 0:00:06.4]} 1-0

[Event "Early-Titled-Tuesday-Blitz-May-07-2024"]
[Site "Chess.com"]
[Date "2024.05.07"]
[Round "8"]
[White "AnaKuchava"]
[Black "Doublekk14"]
[Result "0-1"]
[WhiteElo "2198"]
[BlackElo "2352"]
[TimeControl "180+1"]
[EndTime "9:36:16 PDT"]
[Termination "Doublekk14 won on time"]

1. d4 {[%clk 0:03:00.9]} 1... Nf6 {[%clk 0:02:50.7]} 2. Nf3 {[%clk 0:02:56.6]}
2... d5 {[%clk 0:02:49.1]} 3. c4 {[%clk 0:02:55.2]} 3... e6 {[%clk 0:02:49.2]}
4. Nc3 {[%clk 0:02:54.6]} 4... h6 {[%clk 0:02:49.4]} 5. Bf4 {[%clk 0:02:53.5]}
5... c5 {[%clk 0:02:48.6]} 6. e3 {[%clk 0:02:48.3]} 6... Nc6 {[%clk 0:02:48.6]}
7. cxd5 {[%clk 0:02:42.4]} 7... exd5 {[%clk 0:02:48.4]} 8. Be2 {[%clk 0:02:41]}
8... Be7 {[%clk 0:02:37.9]} 9. O-O {[%clk 0:02:36.8]} 9... O-O {[%clk 0:02:38]}
10. Rc1 {[%clk 0:02:30.4]} 10... c4 {[%clk 0:02:37.3]} 11. b3 {[%clk 0:02:03.1]}
11... cxb3 {[%clk 0:02:35.4]} 12. Qxb3 {[%clk 0:02:04]} 12... Na5 {[%clk
0:02:34.1]} 13. Qb1 {[%clk 0:01:32.4]} 13... Bg4 {[%clk 0:02:26.7]} 14. h3
{[%clk 0:01:26]} 14... Bxf3 {[%clk 0:01:55.8]} 15. Bxf3 {[%clk 0:01:24.3]} 15...
b6 {[%clk 0:01:56.1]} 16. Nb5 {[%clk 0:01:21.6]} 16... Nc4 {[%clk 0:01:49.2]}
17. Rfd1 {[%clk 0:00:50.4]} 17... a6 {[%clk 0:01:24.7]} 18. Nc7 {[%clk
0:00:49.4]} 18... Ra7 {[%clk 0:01:24.7]} 19. Nxd5 {[%clk 0:00:47.9]} 19... Nxd5
{[%clk 0:01:24.6]} 20. Rxc4 {[%clk 0:00:45]} 20... Nxf4 {[%clk 0:01:18.6]} 21.
exf4 {[%clk 0:00:45.9]} 21... Rc7 {[%clk 0:01:08.8]} 22. Rdc1 {[%clk 0:00:40.2]}
22... Rxc4 {[%clk 0:00:55.4]} 23. Rxc4 {[%clk 0:00:41.1]} 23... Qb8 {[%clk
0:00:51.4]} 24. d5 {[%clk 0:00:34]} 24... Bd6 {[%clk 0:00:47.4]} 25. g3 {[%clk
0:00:32.7]} 25... Bc5 {[%clk 0:00:45.6]} 26. Qf5 {[%clk 0:00:29.4]} 26... Qd6
{[%clk 0:00:44.3]} 27. h4 {[%clk 0:00:25]} 27... g6 {[%clk 0:00:43.4]} 28. Qe4
{[%clk 0:00:23.2]} 28... Rd8 {[%clk 0:00:26]} 29. Rc2 {[%clk 0:00:21.7]} 29...
Kg7 {[%clk 0:00:24.5]} 30. h5 {[%clk 0:00:21.3]} 30... Qf6 {[%clk 0:00:20.7]}
31. hxg6 {[%clk 0:00:19.6]} 31... Qxg6 {[%clk 0:00:20.3]} 32. Qe5+ {[%clk
0:00:17.2]} 32... Qf6 {[%clk 0:00:16.3]} 33. Qe2 {[%clk 0:00:15.6]} 33... Qg6
{[%clk 0:00:15.5]} 34. Rc1 {[%clk 0:00:15]} 34... Qxg3+ {[%clk 0:00:15.1]} 35.
Kf1 {[%clk 0:00:14.4]} 35... Qxf4 {[%clk 0:00:13.5]} 36. Re1 {[%clk 0:00:11.9]}
36... Rd6 {[%clk 0:00:09.9]} 37. Qe5+ {[%clk 0:00:09.8]} 37... Qxe5 {[%clk
0:00:09.6]} 38. Rxe5 {[%clk 0:00:10.7]} 38... Rf6 {[%clk 0:00:08.6]} 39. Ke2
{[%clk 0:00:09.7]} 39... Rd6 {[%clk 0:00:08.4]} 40. Re8 {[%clk 0:00:09.5]} 40...
Kf6 {[%clk 0:00:07.9]} 41. Ra8 {[%clk 0:00:09]} 41... a5 {[%clk 0:00:07.9]} 42.
Rh8 {[%clk 0:00:09.5]} 42... Kg7 {[%clk 0:00:07.9]} 43. Re8 {[%clk 0:00:10.2]}
43... Rd7 {[%clk 0:00:06.9]} 44. Bg4 {[%clk 0:00:09.6]} 44... Re7+ {[%clk
0:00:07]} 45. Rxe7 {[%clk 0:00:10]} 45... Bxe7 {[%clk 0:00:07.6]} 46. Kf3 {[%clk
0:00:10.3]} 46... Kf6 {[%clk 0:00:07.4]} 47. Ke4 {[%clk 0:00:10.6]} 47... Bd6
{[%clk 0:00:07.8]} 48. Bh5 {[%clk 0:00:10.3]} 48... Kg5 {[%clk 0:00:06.4]} 49.
Bxf7 {[%clk 0:00:10.1]} 49... h5 {[%clk 0:00:06.8]} 50. Kf3 {[%clk 0:00:10.1]}
50... h4 {[%clk 0:00:06.9]} 51. Be6 {[%clk 0:00:10.4]} 51... Kf6 {[%clk
0:00:06.2]} 52. Kg4 {[%clk 0:00:10.6]} 52... Bc5 {[%clk 0:00:06.1]} 53. Kxh4
{[%clk 0:00:07.2]} 53... Bxf2+ {[%clk 0:00:06.3]} 54. Kg4 {[%clk 0:00:08.1]}
54... Ke5 {[%clk 0:00:06.3]} 55. Kf3 {[%clk 0:00:08]} 55... Bc5 {[%clk
0:00:06.3]} 56. Ke2 {[%clk 0:00:08.7]} 56... Kd4 {[%clk 0:00:06.1]} 57. Kd2
{[%clk 0:00:09]} 57... Bd6 {[%clk 0:00:06.1]} 58. Kc2 {[%clk 0:00:08.9]} 58...
b5 {[%clk 0:00:06.4]} 59. Kb3 {[%clk 0:00:09.2]} 59... a4+ {[%clk 0:00:06.2]}
60. Kc2 {[%clk 0:00:08.8]} 60... b4 {[%clk 0:00:06.5]} 61. Kb2 {[%clk
0:00:08.6]} 61... Kc4 {[%clk 0:00:06.8]} 62. Kc2 {[%clk 0:00:07.8]} 62... Be5
{[%clk 0:00:07.1]} 63. Kb1 {[%clk 0:00:07.6]} 63... Kc5 {[%clk 0:00:07.2]} 64.
Bf7 {[%clk 0:00:07.4]} 64... Bd4 {[%clk 0:00:06.8]} 65. Bg8 {[%clk 0:00:07.4]}
65... Kd6 {[%clk 0:00:06.9]} 66. Bf7 {[%clk 0:00:07.7]} 66... Kc5 {[%clk
0:00:06.4]} 67. Bg8 {[%clk 0:00:07.9]} 67... Be5 {[%clk 0:00:06.8]} 68. Be6
{[%clk 0:00:08.3]} 68... Bd6 {[%clk 0:00:07.3]} 69. Kb2 {[%clk 0:00:08.1]} 69...
Kd4 {[%clk 0:00:07.5]} 70. Kb1 {[%clk 0:00:08.3]} 70... Bc5 {[%clk 0:00:07]} 71.
Kb2 {[%clk 0:00:06.8]} 71... Bd6 {[%clk 0:00:07.3]} 72. Kb1 {[%clk 0:00:06.2]}
72... Kc3 {[%clk 0:00:07.5]} 73. Bf7 {[%clk 0:00:05.5]} 73... b3 {[%clk
0:00:06.4]} 74. axb3 {[%clk 0:00:06.4]} 74... Kxb3 {[%clk 0:00:06.5]} 75. Bg8
{[%clk 0:00:06.5]} 75... a3 {[%clk 0:00:06.8]} 0-1